[Event "BL 2024-25"]
[Site "Austria"]
[Date "2024.10.10"]
[Round "2.10"]
[White "Rodshtein, Maxim"]
[Black "Kunin, Vitaly"]
[Result "1-0"]
[Annotator "TA"]
[ECO "A07"]
[WhiteElo "2613"]
[BlackElo "2528"]
[PlyCount "71"]
[EventDate "2024.08.28"]
[EventType "team-tourn"]
[EventCountry "AUT"]
[SourceTitle "playchess.com"]
[Source "ChessBase"]
[SourceQuality "1"]
[WhiteTeam "Linz"]
[BlackTeam "Feffernitz"]
[TimeControl "40/5400+30:1800+30"]

{[%evp 9,71,16,6,5,4,4,24,12,13,11,20,10,30,18,14,28,17,0,26,30,36,39,40,40,42,48,46,44,43,31,34,35,116,107,116,115,164,162,147,135,167,167,157,161,268,235,478,511,508,476,659,622,683,637,978,934,1139,1089,6525,6170,5635,5679,5631,5443]} 1. Nf3 {[%emt 0:00:15]} d5 {[%emt 0:00:48]} 2. g3 {[%emt 0:00:17]} Bg4 {[%emt 0:02:31]} 3. Bg2 {[%emt 0:00:11]} Nd7 {[%emt 0:00:24]} 4. h3 {[%emt 0:04:00]} Bxf3 {[%emt 0:01:14]} 5. Bxf3 {[%emt 0:00:06]} c6 {[%emt 0:00:15]} 6. d3 {[%emt 0:00:29]} e5 {[%emt 0:00:59]} 7. e4 {[%emt 0:04:08]} dxe4 {[%emt 0:00:45]} 8. dxe4 {[%emt 0:00:14] White has an edge.} Bc5 {[%emt 0:00:23]} 9. Nd2 {[%emt 0:02:31]} Ngf6 {[%emt 0:02:26]} 10. O-O {[%emt 0:02:19]} Qc7 {[%emt 0:05:52]} 11. a4 {[%emt 0:07:09]} O-O {[%emt 0:06:25]} 12. Qe2 {[%emt 0:02:44]} Rfd8 {[%emt 0:05:18]} 13. Nb3 {[%emt 0:05:29]} Be7 {[%emt 0:00:32]} 14. Be3 {[%emt 0:00:25]} Nf8 {[%emt 0:00:29]} 15. c3 {[%emt 0:23:21]} Ne6 {[%emt 0:02:26]} 16. h4 {[%emt 0:05:43]} Nd7 {[%emt 0:05:56]} 17. Bg4 {[%emt 0:00:42]} Nec5 {[%emt 0:01:45]} 18. Nxc5 {[%emt 0:00:20]} Nxc5 {[%emt 0:07:48]} 19. Qc4 {[%emt 0:00:17]} b6 {[%emt 0:02:09]} 20. Rfd1 {[%emt 0:09:53]} Rxd1+ {[%emt 0:01:43] Black is now going downhill.} (20... a5 $14) 21. Rxd1 $16 {[%emt 0:00:12]} Rd8 {[%emt 0:00:09] [#]} 22. Rxd8+ $1 {[%emt 0:08:16]} Qxd8 {[%emt 0:00:09]} (22... Bxd8 $16 23. Bxc5 bxc5) 23. b4 $18 {[%emt 0:06:09]} Qd3 {[%emt 0:01:07]} 24. Qxd3 {[%emt 0:00:12]} Nxd3 $16 {[%emt 0:00:08][%mdl 4096] Endgame. KBB-KBN} 25. Bd7 {[%emt 0:04:24]} c5 {[%emt 0:03:36]} 26. Bb5 {[%emt 0:00:09]} Ne1 {[%emt 0:10:54] [#]} (26... Nb2 $142) 27. bxc5 $1 $18 {[%emt 0:00:56]} ({Inferior is} 27. Kf1 Nc2 $11) 27... Bxc5 {[%emt 0:10:35]} (27... bxc5 {was worth a try.} 28. Kf1 Nc2) 28. Bxc5 {[%emt 0:00:14] White is clearly winning.} bxc5 {[%emt 0:00:06] KB-KN} 29. Kf1 {[%emt 0:00:19]} Nc2 {[%emt 0:00:16]} 30. Ke2 {[%emt 0:02:32]} Na3 {[%emt 0:04:49]} 31. Ba6 {[%emt 0:00:28]} f5 {[%emt 0:00:36]} 32. Kd2 {[%emt 0:04:32]} fxe4 {[%emt 0:03:24]} 33. Kc1 {[%emt 0:00:04]} e3 {[%emt 0:01:42]} 34. fxe3 {[%emt 0:00:44][%cal Bf2e3,Be3e4][%mdl 32]} Kf7 {[%emt 0:00:50]} 35. Kb2 {[%emt 0:00:14]} Ke6 {[%emt 0:00:05]} 36. e4 {[%emt 0:00:14] Weighted Error Value: White=0.02 (flawless) /Black=0.44.  Mistake:       	---       	Black=4      Inaccurate:     	---       	Black=2      OK:         	White=8     	Black=8      Best:        	White=5     	---        Strong:       	White=2     	---} 1-0

[Event "BL 2024-25"]
[Site "Austria"]
[Date "2024.10.10"]
[Round "2.11"]
[White "Pajeken, Jakob Leon"]
[Black "Shimanov, Aleksandr"]
[Result "0-1"]
[Annotator "RC"]
[ECO "D24"]
[WhiteElo "2423"]
[BlackElo "2582"]
[PlyCount "196"]
[EventDate "2024.08.28"]
[EventType "team-tourn"]
[EventCountry "AUT"]
[SourceTitle "playchess.com"]
[Source "ChessBase"]
[SourceQuality "1"]
[WhiteTeam "Feffernitz"]
[BlackTeam "Linz"]
[TimeControl "40/5400+30:1800+30"]

1. d4 {[%emt 0:00:17]} Nf6 {[%emt 0:00:53]} 2. Nf3 {[%emt 0:00:11]} d5 {[%emt 0:00:39]} 3. c4 {[%emt 0:00:18]} e6 {[%emt 0:00:10]} 4. Nc3 {[%emt 0:00:18]} dxc4 {[%emt 0:00:58]} 5. e3 {[%emt 0:01:58]} a6 {[%emt 0:01:39]} 6. a4 {[%emt 0:02:16]} b6 {[%emt 0:02:02]} 7. Bxc4 {[%emt 0:00:47]} Bb7 {[%emt 0:00:11]} 8. O-O {[%emt 0:02:12]} Nc6 {[%emt 0:09:12]} 9. Qe2 {[%emt 0:13:30]} Na5 {[%emt 0:02:41]} 10. Ba2 {[%emt 0:00:57]} Bb4 {[%emt 0:00:36]} 11. Bd2 {[%emt 0:08:57]} Qe7 {[%emt 0:02:30]} 12. Rac1 {[%emt 0:02:59]} O-O {[%emt 0:01:03]} 13. Ne5 {[%emt 0:05:05]} Bd6 {[%emt 0:11:41]} 14. Nd3 {[%emt 0:12:48]} Nc6 {[%emt 0:00:45]} 15. f3 {[%emt 0:06:09]} Nb4 {[%emt 0:21:53]} 16. Bb1 {[%emt 0:05:51]} Nxd3 {[%emt 0:03:58]} 17. Bxd3 {[%emt 0:01:00]} e5 {[%emt 0:02:21]} 18. dxe5 {[%emt 0:07:31]} Bxe5 {[%emt 0:02:07]} 19. Rfd1 {[%emt 0:02:19]} Rfe8 {[%emt 0:04:03]} 20. Be1 {[%emt 0:03:01]} c5 {[%emt 0:01:56]} 21. Bh4 {[%emt 0:06:26]} Qc7 {[%emt 0:03:39]} 22. Bxf6 {[%emt 0:01:15]} Bxf6 {[%emt 0:00:07]} 23. Be4 {[%emt 0:03:45]} Bxe4 {[%emt 0:04:17]} 24. Nxe4 {[%emt 0:00:08]} Be5 {[%emt 0:00:04]} 25. g3 {[%emt 0:01:07]} h6 {[%emt 0:07:39]} 26. b4 {[%emt 0:03:33]} f5 {[%emt 0:00:52]} 27. Nf2 {[%emt 0:00:38]} Kh8 {[%emt 0:07:22]} 28. bxc5 {[%emt 0:00:46]} bxc5 {[%emt 0:00:09]} 29. Rd5 {[%emt 0:01:05]} Qb6 {[%emt 0:01:39]} 30. Qc4 {[%emt 0:01:36]} Bf6 {[%emt 0:02:39]} 31. Qxc5 {[%emt 0:02:39]} Qe6 {[%emt 0:03:11]} 32. Rd6 {[%emt 0:02:22]} Qxe3 {[%emt 0:00:31]} 33. Qxe3 {[%emt 0:00:24]} Rxe3 {[%emt 0:00:02]} 34. Nd3 {[%emt 0:00:44]} Rd8 {[%emt 0:02:22]} 35. Rxd8+ {[%emt 0:00:38]} Bxd8 {[%emt 0:00:01]} 36. Nf4 {[%emt 0:00:36]} Bb6 {[%emt 0:00:34]} 37. Kg2 {[%emt 0:00:16]} Ra3 {[%emt 0:00:50]} 38. Rc6 {[%emt 0:00:51]} Ra2+ {[%emt 0:00:17]} 39. Kf1 {[%emt 0:00:36]} Be3 {[%emt 0:01:07]} 40. Rxa6 {[%emt 0:01:33]} Rf2+ {[%emt 0:01:03]} 41. Ke1 {[%emt 0:30:19]} Rxh2 {[%emt 0:30:06]} 42. Ng6+ {[%emt 0:00:00]} Kh7 {[%emt 0:00:00]} 43. Ne7 {[%emt 0:00:00]} Bf2+ {[%emt 0:00:00]} 44. Kd1 {[%emt 0:00:00]} Bxg3 {[%emt 0:00:00]} 45. Nxf5 {[%emt 0:00:00]} Be5 {[%emt 0:00:00]} 46. Re6 {[%emt 0:00:00]} Bf6 {[%emt 0:00:00]} 47. Re2 {[%emt 0:00:00]} Rh1+ {[%emt 0:00:00]} 48. Re1 {[%emt 0:00:00]} Rh5 {[%emt 0:00:00]} 49. Ne3 {[%emt 0:00:00]} Ra5 {[%emt 0:00:00]} 50. Ng4 {[%emt 0:00:00]} Bd4 {[%emt 0:00:00]} 51. Re4 {[%emt 0:00:00]} Rxa4 {[%emt 0:00:00]} 52. Kc2 {[%emt 0:00:00]} Ra2+ {[%emt 0:00:00]} 53. Kb1 {[%emt 0:00:00]} Ra1+ {[%emt 0:00:00]} 54. Kc2 {[%emt 0:00:00]} Bc5 {[%emt 0:00:00]} 55. Re5 {[%emt 0:00:00]} Bd6 {[%emt 0:00:00]} 56. Re6 {[%emt 0:00:00]} Bg3 {[%emt 0:00:00]} 57. Re7 {[%emt 0:00:00]} Kg6 {[%emt 0:00:00]} 58. Ne3 {[%emt 0:00:00]} h5 {[%emt 0:00:00]} 59. Kd3 {[%emt 0:00:00]} Ra3+ {[%emt 0:02:42]} 60. Ke2 {[%emt 0:00:35]} Ra2+ {[%emt 0:00:04]} 61. Kf1 {[%emt 0:00:58]} h4 {[%emt 0:00:40]} 62. Re4 {[%emt 0:02:31]} Rf2+ {[%emt 0:00:24]} 63. Kg1 {[%emt 0:00:07]} Rxf3 {[%emt 0:00:06]} 64. Kg2 {[%emt 0:00:07]} Rf2+ {[%emt 0:00:19]} 65. Kh3 {[%emt 0:00:08]} Kh5 {[%emt 0:01:21]} 66. Ng4 {[%emt 0:02:39]} Rf3 {[%emt 0:00:13]} 67. Re3 {[%emt 0:00:34]} Rf4 {[%emt 0:00:42]} 68. Re5+ {[%emt 0:00:46]} g5 {[%emt 0:00:16]} 69. Re8 {[%emt 0:00:18]} Ra4 {[%emt 0:05:51]} 70. Rg8 {[%emt 0:01:17]} Rf4 {[%emt 0:01:52]} 71. Ne5 {[%emt 0:02:54]} Kh6 {[%emt 0:00:11]} 72. Rg6+ {[%emt 0:00:12]} Kh5 {[%emt 0:00:02]} 73. Rg8 {[%emt 0:00:07]} g4+ {[%emt 0:01:38]} 74. Nxg4 {[%emt 0:00:50]} Rf3 {[%emt 0:00:27]} 75. Kg2 {[%emt 0:00:39]} Rf7 {[%emt 0:00:25]} 76. Kh3 {[%emt 0:00:44]} Rf3 {[%emt 0:00:39]} 77. Kg2 {[%emt 0:00:12]} Rf5 {[%emt 0:00:25]} 78. Kh3 {[%emt 0:00:48]} Bd6 {[%emt 0:00:12]} 79. Rh8+ {[%emt 0:00:24]} Kg5 {[%emt 0:00:06]} 80. Rg8+ {[%emt 0:00:20]} Kf4 {[%emt 0:00:06]} 81. Nh6 {[%emt 0:00:48]} Rd5 {[%emt 0:00:15]} 82. Nf7 {[%emt 0:02:25]} Be7 {[%emt 0:00:19]} 83. Rg4+ {[%emt 0:00:33]} Kf3 {[%emt 0:00:13]} 84. Rg1 {[%emt 0:00:33]} Kf2 {[%emt 0:00:33]} 85. Rg4 {[%emt 0:01:02]} Rf5 {[%emt 0:01:13]} 86. Rg2+ {[%emt 0:00:41]} Kf1 {[%emt 0:00:02]} 87. Rg7 {[%emt 0:00:15]} Rf3+ {[%emt 0:00:32]} 88. Kh2 {[%emt 0:00:20]} Bc5 {[%emt 0:01:52]} 89. Ng5 {[%emt 0:00:59]} Bd6+ {[%emt 0:00:22]} 90. Kh1 {[%emt 0:00:05]} Rf2 {[%emt 0:00:15]} 91. Rf7 {[%emt 0:00:41]} Bf4 {[%emt 0:00:08]} 92. Rxf4 {[%emt 0:00:21]} Rxf4 {[%emt 0:00:05]} 93. Kh2 {[%emt 0:00:03]} Rg4 {[%emt 0:00:24]} 94. Nf3 {[%emt 0:00:21]} Rg2+ {[%emt 0:00:43]} 95. Kh1 {[%emt 0:00:12]} h3 {[%emt 0:00:31]} 96. Nd2+ {[%emt 0:00:24]} Kf2 {[%emt 0:00:24]} 97. Nf3 {[%emt 0:00:40]} Rg4 {[%emt 0:00:34]} 98. Ne5 {[%emt 0:00:18]} Re4 {[%emt 0:00:14]} 0-1

[Event "BL 2024-25"]
[Site "Austria"]
[Date "2024.10.10"]
[Round "2.13"]
[White "Pechac, Jergus"]
[Black "Unuk, Laura"]
[Result "1/2-1/2"]
[Annotator "TA"]
[ECO "B10"]
[WhiteElo "2582"]
[BlackElo "2304"]
[PlyCount "83"]
[EventDate "2024.08.28"]
[EventType "team-tourn"]
[EventCountry "AUT"]
[SourceTitle "playchess.com"]
[Source "ChessBase"]
[SourceQuality "1"]
[WhiteTeam "Mistelbach"]
[BlackTeam "Pamhagen"]
[TimeControl "40/5400+30:1800+30"]

{[%evp 14,83,36,28,45,7,0,-16,-14,-8,0,-111,-109,-114,-99,-127,-135,-296,-79,-106,-87,-143,-116,-240,-265,-328,-224,-264,-239,-352,-343,-319,-113,-116,-135,-351,-147,-145,-156,-179,-131,-201,-39,-8,-21,-15,42,0,19,18,16,0,0,-42,0,0,90,84,90,76,195,181,154,148,243,208,274,102,104,0,0,-169]} 1. e4 {[%emt 0:00:05]} c6 {[%emt 0:00:31]} 2. Nf3 {[%emt 0:02:45]} d5 {[%emt 0:00:20]} 3. e5 {[%emt 0:01:25]} Bg4 {[%emt 0:02:30]} 4. Be2 {[%emt 0:00:24]} e6 {[%emt 0:00:11]} 5. O-O {[%emt 0:00:11]} Ne7 {[%emt 0:04:55]} 6. d4 {[%emt 0:00:58] B10: Caro-Kann: 2 d3 and 2 c4.} Nf5 {[%emt 0:00:23]} 7. c3 {[%emt 0:01:49]} Bxf3 {[%emt 0:17:13]} 8. Bxf3 {[%emt 0:00:08]} c5 {[%emt 0:00:30]} 9. dxc5 $146 {[%emt 0:01:44]} ({Predecessor:} 9. Bg4 g6 10. dxc5 Nd7 11. Bxf5 gxf5 12. b4 Nxe5 13. Be3 Bg7 14. Bd4 Rg8 15. g3 {½-½ Mary,P (2534)-Bericat,A (2307) ARG-ch22 email 2009}) 9... Nc6 {[%emt 0:05:46]} 10. b4 {[%emt 0:05:24]} a5 {[%emt 0:04:00]} 11. c4 {[%emt 0:29:30]} dxc4 {[%emt 0:23:32]} (11... axb4 {simplifies} 12. cxd5 exd5 13. Qxd5 Qxd5 14. Bxd5 Rd8) 12. b5 {[%emt 0:00:38]} (12. Bxc6+ $11 {keeps the balance.} bxc6 13. Qa4) 12... Nxe5 $17 {[%emt 0:00:27]} 13. Bxb7 {[%emt 0:02:19]} Bxc5 $1 {[%emt 0:02:27]} 14. Qe2 {[%emt 0:16:46]} (14. Bxa8 $2 Qxa8 15. Bg5 h6 $19) 14... Bd4 $1 {[%emt 0:02:49]} 15. Rd1 $2 {[%emt 0:04:36]} (15. Bb2 $17 Rb8 16. Be4) 15... Bxa1 $2 {[%emt 0:17:05]} (15... Ra7 $1 $19 {[%cal Ra7b7]} 16. Rxd4 Nxd4 (16... Qxd4 $2 17. Bb2 $19) 17. Qxe5 Rxb7) 16. Rxd8+ $17 {[%emt 0:07:31]} Rxd8 {[%emt 0:00:04]} 17. Ba3 {[%emt 0:00:47]} (17. Na3 $142 O-O 18. Bf4 (18. Nxc4 $2 Nxc4 19. g4 Nfd6 $19)) 17... Nd4 $1 $17 {[%emt 0:14:34]} 18. Qh5 {[%emt 0:15:51]} (18. Qxe5 $2 Nf3+ 19. Bxf3 Bxe5 $19) (18. Qe1 $17 Nxb5 19. f4 Bd4+ 20. Kf1) 18... Nxb5 $19 {[%emt 0:00:57]} 19. Bc5 {[%emt 0:00:08]} Nd6 {[%emt 0:00:38]} 20. Ba6 {[%emt 0:03:34]} O-O {[%emt 0:00:03]} 21. Na3 {[%emt 0:00:43]} (21. h3 $142) 21... Rfe8 $19 {[%emt 0:01:28]} 22. h3 {[%emt 0:02:30]} Nd3 $2 {[%emt 0:00:29]} (22... Ne4 $19 23. Be3 g6) 23. Bb6 $17 {[%emt 0:00:21]} Ra8 {[%emt 0:00:22]} 24. Qxa5 $2 {[%emt 0:00:31]} (24. Nxc4 $17 Nxc4 25. Bxc4) 24... c3 {[%emt 0:00:36]} (24... Bb2 $19 {is more deadly. Hoping for ...Bxa3.} 25. g4 Bxa3 26. Qxa3 Ne4) 25. Nc2 $17 {[%emt 0:01:12]} Bb2 $1 {[%emt 0:00:01]} (25... Nc4 26. Qb5 Nxb6 27. Nxa1 $17) 26. Bd4 {[%emt 0:00:11]} Nf4 {[%emt 0:00:57]} ({Black should play} 26... Nf5 $19 {Strongly threatening ...Nxd4.} 27. Bxc3 Bxc3 28. Qxc3 Rxa6 29. Qxd3 Rxa2) 27. Bxg7 {[%emt 0:01:02]} (27. Qb6 $17 {keeps fighting.} Red8 28. Be5) 27... Kxg7 $2 {[%emt 0:00:18]} ({Black should try} 27... e5 $19 28. Bh6 (28. Bxe5 $2 Nc4 $19) 28... Re6 29. Bxf4 exf4) 28. Qe5+ $15 {[%emt 0:00:06]} Kg8 {[%emt 0:00:48]} 29. Qxd6 {[%emt 0:00:06]} Nd5 {[%emt 0:00:29]} (29... Ng6 $11) 30. Bd3 {[%emt 0:00:41]} Rxa2 {[%emt 0:00:24]} 31. Qg3+ {[%emt 0:01:21]} Kf8 $1 {[%emt 0:00:03]} 32. Qd6+ {[%emt 0:00:20]} Kg8 {[%emt 0:00:18]} 33. f4 {[%emt 0:00:31]} Raa8 {[%emt 0:01:15]} 34. f5 {[%emt 0:00:15]} Rad8 {[%emt 0:00:32]} (34... Bc1 $11 35. fxe6 fxe6) 35. Qg3+ $1 $16 {[%emt 0:00:26]} Kf8 {[%emt 0:00:22]} 36. Qg5 {[%emt 0:00:59]} exf5 {[%emt 0:00:11] [#]} (36... Rd6 $16) 37. Qh6+ $1 $18 {[%emt 0:00:04]} Ke7 {[%emt 0:00:48]} ({Don't blunder} 37... Kg8 $2 38. Bxf5 $18) 38. Nd4 $1 {[%emt 0:00:04]} f6 {[%emt 0:00:39]} (38... Ba3 $16 39. Nxf5+ (39. Bxf5 $2 {perishes.} Bc5 $19) 39... Kd7) 39. Nxf5+ $18 {[%emt 0:01:32]} Kd7 {[%emt 0:00:18]} 40. Bb5+ $2 {[%emt 0:00:29]} (40. Qxh7+ $18 Ke6 41. Qb7) 40... Kc7 $16 {[%emt 0:00:39] [#]} 41. Ba4 {[%emt 0:06:59]} (41. Qxh7+ Kb6 42. Ba4 Re1+ 43. Kf2 Ra1 $17) ({White must play} 41. Qh4 $1 $16 {[%cal Rh4c4] White wants to mate with Qc4+.} Re6 42. Qc4+ Kb6 43. Qb3) 41... Ba3 {[%emt 0:11:08]} 42. Kh2 $2 {[%emt 0:03:23]} (42. Qh4 $1 $11 {and White is okay.} Bc5+ 43. Kh2) 1/2-1/2

[Event "BL 2024-25"]
[Site "Austria"]
[Date "2024.10.10"]
[Round "2.14"]
[White "Vitouch, Anatol"]
[Black "Kraus, Tomas"]
[Result "1/2-1/2"]
[Annotator "TA"]
[ECO "E16"]
[WhiteElo "2287"]
[BlackElo "2461"]
[PlyCount "61"]
[EventDate "2024.08.28"]
[EventType "team-tourn"]
[EventCountry "AUT"]
[SourceTitle "playchess.com"]
[Source "ChessBase"]
[SourceQuality "1"]
[WhiteTeam "Pamhagen"]
[BlackTeam "Mistelbach"]
[TimeControl "40/5400+30:1800+30"]

{[%evp 15,61,0,0,0,0,4,4,14,25,14,58,51,39,38,59,28,63,0,0,0,2,0,0,-14,0,-17,1,-48,0,0,0,0,41,27,82,25,38,-16,0,8,63,73,56,37,33,47,35,35]} 1. Nf3 {[%emt 0:00:03]} d5 {[%emt 0:00:34]} 2. d4 {[%emt 0:00:04]} Nf6 {[%emt 0:02:17]} 3. c4 {[%emt 0:00:08]} e6 {[%emt 0:00:40]} 4. g3 {[%emt 0:00:19]} Bb4+ {[%emt 0:03:25]} 5. Nbd2 {[%emt 0:00:06]} O-O {[%emt 0:01:18]} 6. Bg2 {[%emt 0:00:11]} b6 {[%emt 0:01:33]} 7. O-O {[%emt 0:00:55]} Bb7 {[%emt 0:02:01]} 8. Ne5 {[%emt 0:00:57]} Qc8 {[%emt 0:05:40]} 9. cxd5 {[%emt 0:12:31]} Bxd5 {[%emt 0:01:42]} 10. e4 {[%emt 0:02:23]} Bb7 {[%emt 0:00:28]} 11. Qe2 {[%emt 0:15:41] The position is equal.} Nbd7 {[%emt 0:25:41]} 12. Nec4 {[%emt 0:03:51]} a5 {[%emt 0:06:23]} 13. a3 {[%emt 0:06:47]} Be7 {[%emt 0:00:10]} 14. b3 {[%emt 0:03:18]} Ra7 {[%emt 0:07:59]} 15. Re1 {[%emt 0:09:06]} Qa8 {[%emt 0:01:02]} 16. Nb1 {[%emt 0:00:41]} (16. a4 $14) 16... b5 $11 {[%emt 0:03:58]} 17. Ncd2 {[%emt 0:00:31][%cal Ob1c3]} b4 {[%emt 0:03:00]} 18. Bb2 {[%emt 0:16:17]} c5 {[%emt 0:07:29]} 19. Nc4 {[%emt 0:01:41]} cxd4 {[%emt 0:02:36]} 20. Bxd4 {[%emt 0:00:11]} Ra6 {[%emt 0:00:33]} 21. a4 {[%emt 0:02:28]} (21. axb4 $11 {is more appropriate.} Bxb4 22. Nbd2) 21... Bc5 {[%emt 0:05:36]} (21... Rd8 $15 {is superior.}) 22. Bb2 {[%emt 0:01:27]} Qa7 {[%emt 0:02:42][%cal Of6e4]} 23. Nbd2 {[%emt 0:01:44]} Rd8 {[%emt 0:02:45]} 24. Rad1 {[%emt 0:01:20]} h6 {[%emt 0:00:32] [#]} (24... Qa8 $11) 25. h3 {[%emt 0:01:51]} (25. e5 $1 $16 {[%cal Re5f6]} Bxg2 26. Kxg2 (26. exf6 Ba8 $14) 26... Qa8+ 27. Kg1) 25... Qa8 {[%emt 0:02:57]} 26. Ne3 {[%emt 0:05:15]} ({Better is} 26. Kh2 $14) 26... Be7 {[%emt 0:01:00]} 27. e5 {[%emt 0:02:02]} Nh7 {[%emt 0:02:01]} (27... Nd5 $11) 28. Bxb7 $14 {[%emt 0:03:27]} Qxb7 {[%emt 0:00:01]} 29. Nf3 {[%emt 0:02:45] White is slightly better.} Nc5 {[%emt 0:01:52]} 30. Rxd8+ {[%emt 0:00:09]} Bxd8 {[%emt 0:00:00]} 31. Nd4 {[%emt 0:01:36] Weighted Error Value: White=0.18 (very precise) /Black=0.19 (very precise) .  Mistake:       	White=4     	Black=3      Inaccurate:     	White=1     	Black=3      OK:         	White=8     	Black=5      Best:        	White=1     	---} 1/2-1/2

[Event "BL 2024-25"]
[Site "Austria"]
[Date "2024.10.10"]
[Round "2.17"]
[White "Bures, Jaroslav"]
[Black "Horvath, Maria"]
[Result "1-0"]
[Annotator "TA"]
[ECO "C06"]
[WhiteElo "2407"]
[BlackElo "1893"]
[PlyCount "85"]
[EventDate "2024.08.28"]
[EventType "team-tourn"]
[EventCountry "AUT"]
[SourceTitle "playchess.com"]
[Source "ChessBase"]
[SourceQuality "1"]
[WhiteTeam "Mistelbach"]
[BlackTeam "Pamhagen"]
[TimeControl "40/5400+30:1800+30"]

{[%evp 18,85,43,26,106,64,64,64,113,64,196,145,170,143,170,154,149,146,299,312,301,306,299,270,426,420,388,244,274,211,252,244,263,256,264,197,215,210,301,300,329,318,354,304,343,350,527,519,520,510,650,619,613,709,725,725,1173,1178,1139,986,1141,1047,29987,29988,29988,29989,29989,29990,29990,29991]} 1. e4 {[%emt 0:00:19]} e6 {[%emt 0:00:14]} 2. d4 {[%emt 0:00:07]} d5 {[%emt 0:00:03]} 3. Nd2 {[%emt 0:00:09]} Nf6 {[%emt 0:01:09]} 4. e5 {[%emt 0:00:14]} Nfd7 {[%emt 0:00:04]} 5. c3 {[%emt 0:00:16]} c5 {[%emt 0:00:08]} 6. Bd3 {[%emt 0:00:19]} Nc6 {[%emt 0:01:01]} 7. Ne2 {[%emt 0:00:19]} cxd4 {[%emt 0:01:12]} 8. cxd4 {[%emt 0:00:03]} Qb6 {[%emt 0:01:44]} 9. Nf3 {[%emt 0:00:52]} Bb4+ {[%emt 0:04:05]} 10. Kf1 {[%emt 0:01:52]} a5 {[%emt 0:03:15]} (10... Be7 $11) 11. h4 {[%emt 0:01:39]} f6 $1 {[%emt 0:07:31][%cal Rf6e5]} 12. Nf4 {[%emt 0:01:17]} fxe5 {[%emt 0:25:26] White is slightly better.} 13. dxe5 {[%emt 0:00:33]} (13. Nxe6 $16 e4 14. Bf4 (14. Nxg7+ Kf8 $11) 14... exf3 15. a3 (15. Qxf3 Nf6 $11)) 13... Nf8 {[%emt 0:19:53]} (13... Ncxe5 $14 14. Nxe5 Nxe5) 14. Nh5 {[%emt 0:11:51]} ({Better is} 14. Be3 $18 Bc5 15. Bxc5 Qxc5 16. g3) 14... Rg8 {[%emt 0:11:08]} 15. Rh3 {[%emt 0:08:24][%cal Bh1h3,Bh3g3,Bg3g8,Bg8g5,Bg5e5][%mdl 32] And now Rg3 would win.} Bd7 {[%emt 0:03:36]} 16. Rg3 $36 {[%emt 0:02:51][%cal Oc1e3][%mdl 2048] White has strong initiative.} O-O-O {[%emt 0:04:44]} 17. Be3 {[%emt 0:04:36] White is more active.} (17. Nxg7 $6 Bc5 $16) 17... Bc5 {[%emt 0:02:59] A mistake that costs the game.} (17... d4 $16) 18. Bxc5 $18 {[%emt 0:01:22]} (18. Nxg7 Bxe3 19. fxe3 Ng6 $19) (18. Rxg7 Rxg7 19. Bxc5 Qxc5 $16) 18... Qxc5 {[%emt 0:00:01]} 19. Nf6 {[%emt 0:00:30]} (19. Rxg7 Rxg7 20. Nxg7 Qb4 $16) ({But not} 19. Nxg7 $6 Kb8 $16) 19... gxf6 {[%emt 0:03:02]} 20. Rxg8 {[%emt 0:01:09]} Kb8 {[%emt 0:00:59]} (20... fxe5 $142 21. Rc1 Qb4) 21. exf6 {[%emt 0:09:41]} e5 {[%emt 0:00:12]} 22. Rg5 {[%emt 0:07:35]} Qd6 {[%emt 0:01:41]} 23. Rc1 {[%emt 0:02:35]} h6 {[%emt 0:01:39] [#]} 24. Rxc6 $1 {[%emt 0:00:13]} Bxc6 {[%emt 0:00:41]} (24... Qxc6 25. Rxe5) 25. Rxe5 {[%emt 0:00:04]} Qxf6 {[%emt 0:00:13]} 26. Qe2 {[%emt 0:00:39]} d4 {[%emt 0:01:41]} 27. Rxa5 {[%emt 0:01:46]} Bxf3 {[%emt 0:02:21]} (27... Ng6 $142 28. Rf5 Qd6) 28. gxf3 {[%emt 0:00:02]} Nd7 {[%emt 0:01:20]} 29. Qe4 {[%emt 0:00:59]} Rc8 {[%emt 0:00:39][%cal Bd8c8,Bc8c1,Bc1d1][%mdl 32]} 30. b4 {[%emt 0:01:58] Prevents Nc5} Rc1+ {[%emt 0:01:29]} 31. Kg2 {[%emt 0:00:39] [#] Qe8+ is the strong threat.} Qg7+ {[%emt 0:00:42]} (31... Nb6 $142 32. h5 Qd6) 32. Qg4 {[%emt 0:00:54]} Qxg4+ {[%emt 0:00:55]} 33. fxg4 {[%emt 0:00:01][%mdl 4096] Endgame. KRB-KRN} Rd1 {[%emt 0:00:06]} 34. Bf5 {[%emt 0:00:05]} Kc7 {[%emt 0:00:24]} 35. g5 {[%emt 0:00:17]} hxg5 {[%emt 0:00:07]} 36. hxg5 {[%emt 0:00:12]} Kd6 {[%emt 0:00:49]} 37. Bxd7 {[%emt 0:02:41]} Kxd7 {[%emt 0:00:24] KR-KR} 38. g6 {[%emt 0:00:01] g7 would kill now.} Ke7 {[%emt 0:00:08]} 39. Rf5 {[%emt 0:00:05] Threatening mate with g7.} d3 {[%emt 0:00:19]} 40. g7 {[%emt 0:00:12] White mates.} d2 {[%emt 0:00:06]} 41. g8=Q {[%emt 0:30:15]} (41. g8=R Rg1+ 42. Kxg1 d1=Q+ 43. Kg2 Qc2 $18) 41... Rg1+ {[%emt 0:30:08]} 42. Kxg1 {[%emt 0:00:15]} d1=Q+ {[%emt 0:00:05]} 43. Kg2 {[%emt 0:00:07] Weighted Error Value: White=0.27 (precise) /Black=0.64.  Mistake:       	White=2     	Black=5      Inaccurate:     	White=2     	---        OK:         	White=8     	Black=8      Best:        	White=2     	Black=1      Strong:       	---       	Black=1} 1-0